[Event "Early-Titled-Tuesday-Blitz-March-26-2024"]
[Site "Chess.com"]
[Date "2024.03.26"]
[Round "7"]
[White "Msb2"]
[Black "Eagle_2019"]
[Result "1-0"]
[WhiteElo "3040"]
[BlackElo "2860"]
[TimeControl "180+1"]
[EndTime "9:15:07 PDT"]
[Termination "Msb2 won on time"]

1. d4 {[%clk 0:03:00.9]} 1... d5 {[%clk 0:02:59.7]} 2. c4 {[%clk 0:03:01.4]}
2... e6 {[%clk 0:02:59.9]} 3. Nc3 {[%clk 0:03:02]} 3... Nf6 {[%clk 0:03:00.1]}
4. cxd5 {[%clk 0:03:02.6]} 4... exd5 {[%clk 0:03:00.2]} 5. Bg5 {[%clk
0:03:03.3]} 5... Be7 {[%clk 0:02:57.2]} 6. e3 {[%clk 0:03:03.7]} 6... h6 {[%clk
0:02:56.6]} 7. Bf4 {[%clk 0:02:59.3]} 7... O-O {[%clk 0:02:54.1]} 8. Bd3 {[%clk
0:02:59.5]} 8... c5 {[%clk 0:02:53.2]} 9. Nf3 {[%clk 0:02:58.5]} 9... Nc6 {[%clk
0:02:52.5]} 10. O-O {[%clk 0:02:55.2]} 10... cxd4 {[%clk 0:02:51.1]} 11. Nxd4
{[%clk 0:02:56.1]} 11... Nxd4 {[%clk 0:02:49.1]} 12. exd4 {[%clk 0:02:57]} 12...
Be6 {[%clk 0:02:36.9]} 13. Qd2 {[%clk 0:02:53.2]} 13... Bd6 {[%clk 0:02:30]} 14.
Rfe1 {[%clk 0:02:39.7]} 14... Bxf4 {[%clk 0:02:28.3]} 15. Qxf4 {[%clk
0:02:40.6]} 15... Rc8 {[%clk 0:02:26.6]} 16. h3 {[%clk 0:02:32.1]} 16... a6
{[%clk 0:02:07.7]} 17. a3 {[%clk 0:02:29]} 17... Qc7 {[%clk 0:02:06.1]} 18. Qh4
{[%clk 0:02:13.4]} 18... b5 {[%clk 0:01:51.1]} 19. Re3 {[%clk 0:02:12.4]} 19...
Qd8 {[%clk 0:01:40.9]} 20. Rae1 {[%clk 0:02:09.8]} 20... Ne4 {[%clk 0:01:32.4]}
21. Qxd8 {[%clk 0:02:07.3]} 21... Rfxd8 {[%clk 0:01:32]} 22. Bxe4 {[%clk
0:02:01]} 22... dxe4 {[%clk 0:01:31.9]} 23. Rxe4 {[%clk 0:02:01.9]} 23... Kf8
{[%clk 0:01:31.6]} 24. f3 {[%clk 0:01:53.4]} 24... g6 {[%clk 0:01:21.9]} 25. h4
{[%clk 0:01:52.9]} 25... Rc4 {[%clk 0:01:19]} 26. Rd1 {[%clk 0:01:19.5]} 26...
Bd5 {[%clk 0:00:52.9]} 27. Re2 {[%clk 0:01:07.1]} 27... b4 {[%clk 0:00:39.6]}
28. axb4 {[%clk 0:01:07.1]} 28... Rxb4 {[%clk 0:00:40.5]} 29. Kf2 {[%clk
0:01:07.2]} 29... Bb7 {[%clk 0:00:39.5]} 30. Red2 {[%clk 0:01:04.4]} 30... Bd5
{[%clk 0:00:31]} 31. Kg3 {[%clk 0:01:03.6]} 31... Bb3 {[%clk 0:00:30.5]} 32. Ra1
{[%clk 0:01:03.9]} 32... Rbxd4 {[%clk 0:00:22.8]} 33. Rxd4 {[%clk 0:01:04.8]}
33... Rxd4 {[%clk 0:00:23.5]} 34. Rxa6 {[%clk 0:01:05.5]} 34... Rd2 {[%clk
0:00:23.7]} 35. Ne4 {[%clk 0:00:59.3]} 35... Rxb2 {[%clk 0:00:20.1]} 36. Rb6
{[%clk 0:00:59.5]} 36... f5 {[%clk 0:00:05.7]} 37. Nc5 {[%clk 0:00:59.7]} 37...
f4+ {[%clk 0:00:03.7]} 38. Kxf4 {[%clk 0:01:00.1]} 38... Rxg2 {[%clk 0:00:03.4]}
39. Rxb3 {[%clk 0:00:57.1]} 39... Ke7 {[%clk 0:00:03.3]} 40. Rb6 {[%clk
0:00:53.4]} 40... g5+ {[%clk 0:00:03]} 41. hxg5 {[%clk 0:00:54.3]} 41... Rxg5
{[%clk 0:00:03]} 42. Rb7+ {[%clk 0:00:53.3]} 42... Ke8 {[%clk 0:00:02.3]} 43.
Ne4 {[%clk 0:00:53.9]} 43... Ra5 {[%clk 0:00:02.1]} 44. Rh7 {[%clk 0:00:53.9]}
44... h5 {[%clk 0:00:02.2]} 45. Rxh5 {[%clk 0:00:53.4]} 45... Ra3 {[%clk
0:00:01.2]} 46. Rh7 {[%clk 0:00:52]} 46... Kf8 {[%clk 0:00:01.5]} 47. Kg4 {[%clk
0:00:52.4]} 47... Rxf3 {[%clk 0:00:01.2]} 48. Kxf3 {[%clk 0:00:51.9]} 1-0

[Event "Early-Titled-Tuesday-Blitz-March-26-2024"]
[Site "Chess.com"]
[Date "2024.03.26"]
[Round "7"]
[White "WindWhistler11"]
[Black "Dr_Thomas_Quilter"]
[Result "1-0"]
[WhiteElo "2431"]
[BlackElo "2028"]
[TimeControl "180+1"]
[EndTime "9:15:07 PDT"]
[Termination "WindWhistler11 won by checkmate"]

1. Nf3 {[%clk 0:03:00.9]} 1... Nf6 {[%clk 0:02:59.5]} 2. g3 {[%clk 0:03:01.4]}
2... b6 {[%clk 0:02:59.1]} 3. Bg2 {[%clk 0:03:01.8]} 3... Bb7 {[%clk 0:02:59.8]}
4. c4 {[%clk 0:03:01.8]} 4... c5 {[%clk 0:02:57.7]} 5. b3 {[%clk 0:03:00.4]}
5... g6 {[%clk 0:02:56.1]} 6. Bb2 {[%clk 0:03:00.8]} 6... Bg7 {[%clk 0:02:56.9]}
7. O-O {[%clk 0:03:00.3]} 7... O-O {[%clk 0:02:56.8]} 8. e3 {[%clk 0:02:56.4]}
8... d6 {[%clk 0:02:54.4]} 9. Qe2 {[%clk 0:02:56.3]} 9... Nc6 {[%clk 0:02:53.8]}
10. Rd1 {[%clk 0:02:55.6]} 10... Qd7 {[%clk 0:02:53.4]} 11. d3 {[%clk
0:02:48.6]} 11... Rfe8 {[%clk 0:02:53.2]} 12. Nc3 {[%clk 0:02:45.3]} 12... a6
{[%clk 0:02:53.2]} 13. Rac1 {[%clk 0:02:45.1]} 13... Rab8 {[%clk 0:02:52.9]} 14.
h3 {[%clk 0:02:39.2]} 14... e6 {[%clk 0:02:51.8]} 15. Kh2 {[%clk 0:02:37.5]}
15... Ne5 {[%clk 0:02:50]} 16. Nxe5 {[%clk 0:02:33.9]} 16... dxe5 {[%clk
0:02:50.9]} 17. Ne4 {[%clk 0:02:33.1]} 17... Nxe4 {[%clk 0:02:48.9]} 18. dxe4
{[%clk 0:02:33.1]} 18... Qc7 {[%clk 0:02:47.3]} 19. Rd2 {[%clk 0:02:24.1]} 19...
Red8 {[%clk 0:02:47.1]} 20. Rcd1 {[%clk 0:02:24.8]} 20... Bf6 {[%clk 0:02:46.5]}
21. f4 {[%clk 0:02:22.7]} 21... Rxd2 {[%clk 0:02:43.6]} 22. Rxd2 {[%clk
0:02:21.2]} 22... Rd8 {[%clk 0:02:42.5]} 23. Rxd8+ {[%clk 0:02:13.5]} 23... Qxd8
{[%clk 0:02:42]} 24. Bxe5 {[%clk 0:02:02.8]} 24... Bxe5 {[%clk 0:02:41.8]} 25.
fxe5 {[%clk 0:02:03.7]} 25... Qg5 {[%clk 0:02:39.7]} 26. Qd3 {[%clk 0:01:57.3]}
26... Qxe5 {[%clk 0:02:38.4]} 27. Qd8+ {[%clk 0:01:57.1]} 27... Kg7 {[%clk
0:02:38.6]} 28. Qxb6 {[%clk 0:01:53.2]} 28... Bxe4 {[%clk 0:02:38.3]} 29. Bxe4
{[%clk 0:01:50.2]} 29... Qxe4 {[%clk 0:02:39.2]} 30. Qxc5 {[%clk 0:01:50.4]}
30... Qc2+ {[%clk 0:02:37]} 31. Kg1 {[%clk 0:01:50.2]} 31... Qb1+ {[%clk
0:02:37.2]} 32. Kf2 {[%clk 0:01:50.7]} 32... Qxa2+ {[%clk 0:02:38.1]} 33. Kf3
{[%clk 0:01:49.5]} 33... Qxb3 {[%clk 0:02:37.2]} 34. Qd4+ {[%clk 0:01:49.3]}
34... Kg8 {[%clk 0:02:33.7]} 35. Qd8+ {[%clk 0:01:49.1]} 35... Kg7 {[%clk
0:02:34.3]} 36. Qd4+ {[%clk 0:01:49.7]} 36... Kg8 {[%clk 0:02:33.8]} 37. c5
{[%clk 0:01:45.6]} 37... Qb7+ {[%clk 0:02:28.2]} 38. e4 {[%clk 0:01:43.2]} 38...
Kf8 {[%clk 0:02:15]} 39. Qd8+ {[%clk 0:01:36.9]} 39... Kg7 {[%clk 0:02:14.1]}
40. Qd6 {[%clk 0:01:35.6]} 40... Qb3+ {[%clk 0:02:09.5]} 41. Kf4 {[%clk
0:01:34.8]} 41... Qc2 {[%clk 0:02:01.8]} 42. Qd4+ {[%clk 0:01:27.8]} 42... Kh6
{[%clk 0:01:53.1]} 43. Qe3 {[%clk 0:01:16.3]} 43... Qc4 {[%clk 0:01:12.7]} 44.
Ke5+ {[%clk 0:01:01.2]} 44... Kg7 {[%clk 0:01:08.4]} 45. Kd6 {[%clk 0:00:59.1]}
45... a5 {[%clk 0:00:57.1]} 46. c6 {[%clk 0:00:58.9]} 46... a4 {[%clk
0:00:56.2]} 47. c7 {[%clk 0:00:56.2]} 47... Kf8 {[%clk 0:00:19.8]} 48. Kd7
{[%clk 0:00:47]} 48... Qb5+ {[%clk 0:00:18.7]} 49. Kd6 {[%clk 0:00:43]} 49...
Ke8 {[%clk 0:00:16.3]} 50. c8=Q# {[%clk 0:00:41]} 1-0

[Event "Early-Titled-Tuesday-Blitz-March-26-2024"]
[Site "Chess.com"]
[Date "2024.03.26"]
[Round "7"]
[White "Kostya0705"]
[Black "MightyGMpretender"]
[Result "1-0"]
[WhiteElo "2582"]
[BlackElo "2759"]
[TimeControl "180+1"]
[EndTime "9:15:09 PDT"]
[Termination "Kostya0705 won by checkmate"]

1. e4 {[%clk 0:02:35.7]} 1... e5 {[%clk 0:02:59.8]} 2. Nf3 {[%clk 0:02:32.7]}
2... Nc6 {[%clk 0:03:00.4]} 3. Bc4 {[%clk 0:02:30.4]} 3... Bc5 {[%clk 0:03:00]}
4. c3 {[%clk 0:02:30.5]} 4... Qf6 {[%clk 0:02:59.7]} 5. O-O {[%clk 0:02:28.2]}
5... d6 {[%clk 0:02:59.8]} 6. h3 {[%clk 0:02:21.9]} 6... h6 {[%clk 0:02:55.8]}
7. d3 {[%clk 0:02:21.2]} 7... Nge7 {[%clk 0:02:52.8]} 8. Be3 {[%clk 0:02:18.4]}
8... Bb6 {[%clk 0:02:53]} 9. Nbd2 {[%clk 0:02:17.2]} 9... g5 {[%clk 0:02:52.2]}
10. Nh2 {[%clk 0:02:12.9]} 10... h5 {[%clk 0:02:49.7]} 11. Qe2 {[%clk
0:02:10.2]} 11... Ng6 {[%clk 0:02:49.2]} 12. Kh1 {[%clk 0:02:02.9]} 12... Bd7
{[%clk 0:02:47.3]} 13. a4 {[%clk 0:02:01.5]} 13... g4 {[%clk 0:02:42.3]} 14. b4
{[%clk 0:01:53.8]} 14... a5 {[%clk 0:02:29.1]} 15. b5 {[%clk 0:01:46.7]} 15...
Nd8 {[%clk 0:02:25.8]} 16. g3 {[%clk 0:01:21.3]} 16... gxh3 {[%clk 0:02:16.9]}
17. f4 {[%clk 0:01:19.7]} 17... exf4 {[%clk 0:02:15.2]} 18. gxf4 {[%clk
0:01:16.5]} 18... Nh4 {[%clk 0:01:54.6]} 19. Bxb6 {[%clk 0:01:11.1]} 19... cxb6
{[%clk 0:01:54.5]} 20. e5 {[%clk 0:01:11]} 20... Qe7 {[%clk 0:01:51.3]} 21. Ne4
{[%clk 0:01:08.7]} 21... Nf5 {[%clk 0:01:43.1]} 22. exd6 {[%clk 0:01:04.9]}
22... Qh4 {[%clk 0:01:07]} 23. Nf6+ {[%clk 0:00:42.5]} 23... Kf8 {[%clk
0:01:07.2]} 24. Nxd7+ {[%clk 0:00:43]} 24... Kg7 {[%clk 0:01:07.8]} 25. Rg1+
{[%clk 0:00:42.9]} 25... Kh6 {[%clk 0:01:07.6]} 26. Qf3 {[%clk 0:00:27.7]} 26...
Ne6 {[%clk 0:01:02.2]} 27. Ne5 {[%clk 0:00:16.4]} 27... Raf8 {[%clk 0:01:00.4]}
28. Raf1 {[%clk 0:00:15]} 28... Nd8 {[%clk 0:00:54.4]} 29. Rg5 {[%clk
0:00:13.7]} 29... Nxd6 {[%clk 0:00:38.1]} 30. Bd5 {[%clk 0:00:09.9]} 30... Rhg8
{[%clk 0:00:23.3]} 31. Rfg1 {[%clk 0:00:09.2]} 31... Rh8 {[%clk 0:00:09.2]} 32.
Nxf7+ {[%clk 0:00:06.7]} 32... N8xf7 {[%clk 0:00:07.7]} 33. Rg6+ {[%clk
0:00:06.5]} 33... Kh7 {[%clk 0:00:07.9]} 34. Rg7+ {[%clk 0:00:07.4]} 34... Kh6
{[%clk 0:00:08.5]} 35. R1g6# {[%clk 0:00:08.3]} 1-0

[Event "Early-Titled-Tuesday-Blitz-March-26-2024"]
[Site "Chess.com"]
[Date "2024.03.26"]
[Round "7"]
[White "ChessLover0108"]
[Black "Gabrielian_Artur"]
[Result "0-1"]
[WhiteElo "2950"]
[BlackElo "2818"]
[TimeControl "180+1"]
[EndTime "9:15:12 PDT"]
[Termination "Gabrielian_Artur won by resignation"]

1. Nf3 {[%clk 0:03:00.9]} 1... Nf6 {[%clk 0:02:57.6]} 2. c4 {[%clk 0:03:01]}
2... e6 {[%clk 0:02:57.6]} 3. d4 {[%clk 0:03:00.2]} 3... d5 {[%clk 0:02:57.7]}
4. e3 {[%clk 0:03:01.1]} 4... Be7 {[%clk 0:02:56.1]} 5. b3 {[%clk 0:03:00.1]}
5... O-O {[%clk 0:02:55.8]} 6. Bb2 {[%clk 0:03:00.7]} 6... b6 {[%clk 0:02:56.1]}
7. Nbd2 {[%clk 0:03:01]} 7... Bb7 {[%clk 0:02:56.3]} 8. Bd3 {[%clk 0:03:01.8]}
8... Nbd7 {[%clk 0:02:56.5]} 9. O-O {[%clk 0:03:01.6]} 9... c5 {[%clk
0:02:56.7]} 10. Qe2 {[%clk 0:02:54.5]} 10... Rc8 {[%clk 0:02:55]} 11. Rfd1
{[%clk 0:02:42.9]} 11... Qc7 {[%clk 0:02:54.7]} 12. Rdc1 {[%clk 0:02:39.7]}
12... Qb8 {[%clk 0:02:54.4]} 13. cxd5 {[%clk 0:02:28.8]} 13... Nxd5 {[%clk
0:02:43.9]} 14. a3 {[%clk 0:02:25.7]} 14... Rfd8 {[%clk 0:02:36.2]} 15. Nc4
{[%clk 0:02:16.8]} 15... N7f6 {[%clk 0:02:33.1]} 16. Nce5 {[%clk 0:02:14.4]}
16... cxd4 {[%clk 0:02:29.5]} 17. Rxc8 {[%clk 0:02:10.9]} 17... Rxc8 {[%clk
0:02:25.1]} 18. Bxd4 {[%clk 0:02:11.1]} 18... h6 {[%clk 0:02:20.6]} 19. Bc4
{[%clk 0:01:59.2]} 19... Bc5 {[%clk 0:02:11.8]} 20. Bb2 {[%clk 0:01:46.5]} 20...
a5 {[%clk 0:02:10]} 21. Rd1 {[%clk 0:01:43.1]} 21... Qc7 {[%clk 0:02:09.7]} 22.
h3 {[%clk 0:01:22.1]} 22... Qe7 {[%clk 0:02:06.3]} 23. a4 {[%clk 0:01:06.3]}
23... Ne4 {[%clk 0:02:01.1]} 24. Qd3 {[%clk 0:00:39.9]} 24... Nxf2 {[%clk
0:01:40.9]} 25. Kxf2 {[%clk 0:00:40.8]} 25... Nxe3 {[%clk 0:01:40.5]} 26. Kg3
{[%clk 0:00:41.5]} 26... Nxd1 {[%clk 0:01:35.4]} 27. Qxd1 {[%clk 0:00:42.4]}
27... Bd6 {[%clk 0:01:31]} 28. Kf2 {[%clk 0:00:27.6]} 28... Bd5 {[%clk
0:01:18.9]} 29. Bxd5 {[%clk 0:00:18.5]} 29... exd5 {[%clk 0:01:18.9]} 30. Bd4
{[%clk 0:00:19.4]} 30... Bc5 {[%clk 0:01:16.6]} 31. Ng4 {[%clk 0:00:16.8]} 31...
Qe4 {[%clk 0:01:10.3]} 32. Bxc5 {[%clk 0:00:17]} 32... bxc5 {[%clk 0:01:01]} 33.
Nge5 {[%clk 0:00:05.5]} 33... c4 {[%clk 0:00:58.3]} 34. bxc4 {[%clk 0:00:05.5]}
34... dxc4 {[%clk 0:00:57.9]} 35. Qd7 {[%clk 0:00:06.2]} 35... Rf8 {[%clk
0:00:56.5]} 36. Qc6 {[%clk 0:00:06.4]} 36... Qc2+ {[%clk 0:00:47.3]} 37. Kg3
{[%clk 0:00:06.2]} 37... c3 {[%clk 0:00:47.9]} 38. Kh2 {[%clk 0:00:02.9]} 38...
Qb2 {[%clk 0:00:43.7]} 39. Nd3 {[%clk 0:00:02.7]} 39... Qb8+ {[%clk 0:00:41.8]}
40. Nfe5 {[%clk 0:00:01.7]} 40... f6 {[%clk 0:00:39.2]} 41. Qxc3 {[%clk
0:00:01.3]} 41... fxe5 {[%clk 0:00:39.5]} 42. Qc4+ {[%clk 0:00:01.9]} 42... Kh8
{[%clk 0:00:39]} 43. Kh1 {[%clk 0:00:02.8]} 43... Rf1+ {[%clk 0:00:37.2]} 44.
Kh2 {[%clk 0:00:03.4]} 44... e4+ {[%clk 0:00:37.5]} 0-1

[Event "Early-Titled-Tuesday-Blitz-March-26-2024"]
[Site "Chess.com"]
[Date "2024.03.26"]
[Round "7"]
[White "AlexanderKing"]
[Black "KarstenHansch"]
[Result "0-1"]
[WhiteElo "2643"]
[BlackElo "2505"]
[TimeControl "180+1"]
[EndTime "9:15:12 PDT"]
[Termination "KarstenHansch won on time"]

1. c4 {[%clk 0:03:00.9]} 1... Nf6 {[%clk 0:02:59.7]} 2. Nc3 {[%clk 0:03:00.6]}
2... g6 {[%clk 0:03:00.1]} 3. g3 {[%clk 0:03:00.8]} 3... Bg7 {[%clk 0:03:00]} 4.
Bg2 {[%clk 0:03:01.4]} 4... O-O {[%clk 0:03:00.6]} 5. Nf3 {[%clk 0:03:02]} 5...
c5 {[%clk 0:02:59.9]} 6. O-O {[%clk 0:03:01.8]} 6... d6 {[%clk 0:03:00.3]} 7. d4
{[%clk 0:03:02.2]} 7... Nc6 {[%clk 0:03:00.5]} 8. dxc5 {[%clk 0:03:02.5]} 8...
dxc5 {[%clk 0:03:00.4]} 9. Bf4 {[%clk 0:03:03.4]} 9... Be6 {[%clk 0:02:59.5]}
10. Ne5 {[%clk 0:02:41.1]} 10... Nxe5 {[%clk 0:02:54.2]} 11. Bxe5 {[%clk
0:02:42]} 11... Bxc4 {[%clk 0:02:53.9]} 12. Bxb7 {[%clk 0:02:36.3]} 12... Qxd1
{[%clk 0:02:52.9]} 13. Rfxd1 {[%clk 0:02:37.2]} 13... Rad8 {[%clk 0:02:52.9]}
14. b3 {[%clk 0:02:30.5]} 14... Be6 {[%clk 0:02:49.6]} 15. Ba6 {[%clk
0:02:21.5]} 15... Nd5 {[%clk 0:02:45.4]} 16. Bxg7 {[%clk 0:02:17.8]} 16... Kxg7
{[%clk 0:02:46.3]} 17. Ne4 {[%clk 0:02:06.4]} 17... Nb4 {[%clk 0:02:11]} 18.
Nxc5 {[%clk 0:01:58.5]} 18... Bc8 {[%clk 0:02:10.4]} 19. Bc4 {[%clk 0:01:39.8]}
19... e6 {[%clk 0:02:00.6]} 20. a3 {[%clk 0:01:33.3]} 20... Nc6 {[%clk
0:02:00.1]} 21. Rac1 {[%clk 0:01:12.5]} 21... Ne5 {[%clk 0:01:48.4]} 22. f4
{[%clk 0:01:02.1]} 22... Ng4 {[%clk 0:01:46.9]} 23. h3 {[%clk 0:00:55.4]} 23...
Ne3 {[%clk 0:01:42]} 24. Rd3 {[%clk 0:00:38.9]} 24... Nxc4 {[%clk 0:01:33.9]}
25. bxc4 {[%clk 0:00:24.8]} 25... e5 {[%clk 0:01:33.8]} 26. Kg2 {[%clk
0:00:12.8]} 26... Bf5 {[%clk 0:01:29.2]} 27. Rxd8 {[%clk 0:00:06.2]} 27... Rxd8
{[%clk 0:01:30.1]} 28. fxe5 {[%clk 0:00:07]} 28... Rd2 {[%clk 0:01:20.8]} 29.
Kf3 {[%clk 0:00:02.6]} 29... h5 {[%clk 0:01:15.9]} 30. g4 {[%clk 0:00:02.1]}
30... hxg4+ {[%clk 0:01:15.8]} 31. hxg4 {[%clk 0:00:03]} 31... Bc8 {[%clk
0:01:13.4]} 32. Ke3 {[%clk 0:00:02.4]} 32... Ra2 {[%clk 0:01:12]} 33. Rc3 {[%clk
0:00:02.7]} 33... Bxg4 {[%clk 0:01:12]} 34. Nd3 {[%clk 0:00:01.5]} 34... Rxe2+
{[%clk 0:01:06.8]} 35. Kd4 {[%clk 0:00:01.8]} 35... Bf5 {[%clk 0:01:00.6]} 36.
Nc5 {[%clk 0:00:01.5]} 36... Rd2+ {[%clk 0:00:59.7]} 37. Ke3 {[%clk 0:00:01.7]}
37... Rd8 {[%clk 0:00:59.6]} 38. Nb3 {[%clk 0:00:01.3]} 38... Re8 {[%clk
0:00:58.9]} 39. Kd4 {[%clk 0:00:01.4]} 39... Rd8+ {[%clk 0:00:59.1]} 40. Ke3
{[%clk 0:00:01.8]} 40... Be6 {[%clk 0:00:59.2]} 41. Nd4 {[%clk 0:00:01.7]} 41...
Rc8 {[%clk 0:00:56.4]} 42. c5 {[%clk 0:00:01.9]} 42... Bd5 {[%clk 0:00:54.3]}
43. c6 {[%clk 0:00:02.1]} 43... Kf8 {[%clk 0:00:54.7]} 44. c7 {[%clk 0:00:02.2]}
44... Ke7 {[%clk 0:00:54.4]} 45. Nb5 {[%clk 0:00:02.8]} 45... Kd7 {[%clk
0:00:52.6]} 46. Rc5 {[%clk 0:00:02.8]} 46... Be6 {[%clk 0:00:48.3]} 47. Kf4
{[%clk 0:00:02.2]} 47... a6 {[%clk 0:00:48.5]} 48. Nd6 {[%clk 0:00:01.6]} 48...
Rxc7 {[%clk 0:00:48.9]} 49. Ra5 {[%clk 0:00:01.6]} 49... Rc6 {[%clk 0:00:48.6]}
50. Kg5 {[%clk 0:00:01.2]} 50... Ke7 {[%clk 0:00:46.2]} 0-1

[Event "Early-Titled-Tuesday-Blitz-March-26-2024"]
[Site "Chess.com"]
[Date "2024.03.26"]
[Round "7"]
[White "ernestina08chess"]
[Black "Hui_Li_Macau"]
[Result "0-1"]
[WhiteElo "2224"]
[BlackElo "2393"]
[TimeControl "180+1"]
[EndTime "9:15:16 PDT"]
[Termination "Hui_Li_Macau won by resignation"]

1. e4 {[%clk 0:03:00.9]} 1... e5 {[%clk 0:02:59.9]} 2. Nf3 {[%clk 0:03:01.4]}
2... Nf6 {[%clk 0:03:00]} 3. Nxe5 {[%clk 0:03:00]} 3... d6 {[%clk 0:03:00.1]} 4.
Nf3 {[%clk 0:03:00.2]} 4... Nxe4 {[%clk 0:03:00.3]} 5. c3 {[%clk 0:03:00.9]}
5... d5 {[%clk 0:02:56]} 6. d3 {[%clk 0:03:00.3]} 6... Nf6 {[%clk 0:02:56]} 7.
d4 {[%clk 0:03:01]} 7... Bd6 {[%clk 0:02:55.5]} 8. Bd3 {[%clk 0:03:01.4]} 8...
O-O {[%clk 0:02:54.8]} 9. O-O {[%clk 0:03:02]} 9... Bg4 {[%clk 0:02:54]} 10. Bg5
{[%clk 0:02:58.2]} 10... c6 {[%clk 0:02:51.1]} 11. Nbd2 {[%clk 0:02:56.6]} 11...
Nbd7 {[%clk 0:02:50.5]} 12. h3 {[%clk 0:02:56.1]} 12... Bh5 {[%clk 0:02:50.6]}
13. Re1 {[%clk 0:02:53.7]} 13... Qc7 {[%clk 0:02:49.4]} 14. Qc2 {[%clk
0:02:52.7]} 14... Bg6 {[%clk 0:02:49.2]} 15. Bxg6 {[%clk 0:02:47.8]} 15... hxg6
{[%clk 0:02:49.3]} 16. Bxf6 {[%clk 0:02:41.9]} 16... gxf6 {[%clk 0:02:42.3]} 17.
Re2 {[%clk 0:02:36.3]} 17... Rfe8 {[%clk 0:02:41.6]} 18. Rae1 {[%clk 0:02:36.6]}
18... Rxe2 {[%clk 0:02:33.8]} 19. Rxe2 {[%clk 0:02:37.1]} 19... f5 {[%clk
0:02:27.1]} 20. Nf1 {[%clk 0:02:15.8]} 20... Nf6 {[%clk 0:02:25.2]} 21. N1d2
{[%clk 0:01:59.9]} 21... Ne4 {[%clk 0:02:22.6]} 22. Nxe4 {[%clk 0:01:55.4]}
22... fxe4 {[%clk 0:02:22.7]} 23. Nd2 {[%clk 0:01:52.3]} 23... Kg7 {[%clk
0:02:11.6]} 24. c4 {[%clk 0:01:48.7]} 24... f5 {[%clk 0:01:56.5]} 25. cxd5
{[%clk 0:01:31.7]} 25... cxd5 {[%clk 0:01:57.4]} 26. Qxc7+ {[%clk 0:01:27.9]}
26... Bxc7 {[%clk 0:01:57.3]} 27. Nb3 {[%clk 0:01:28.5]} 27... Bd6 {[%clk
0:01:54.2]} 28. Rc2 {[%clk 0:01:25.5]} 28... Kf7 {[%clk 0:01:52.1]} 29. Kf1
{[%clk 0:01:08.9]} 29... Ke7 {[%clk 0:01:48.6]} 30. Ke2 {[%clk 0:00:53]} 30...
b6 {[%clk 0:01:45.7]} 31. g3 {[%clk 0:00:42.5]} 31... g5 {[%clk 0:01:39.2]} 32.
Rc1 {[%clk 0:00:33.7]} 32... Rh8 {[%clk 0:01:37.8]} 33. Rh1 {[%clk 0:00:33.4]}
33... Rc8 {[%clk 0:01:29.9]} 34. Rc1 {[%clk 0:00:30.7]} 34... Rh8 {[%clk
0:01:11.7]} 35. Rh1 {[%clk 0:00:29.6]} 35... f4 {[%clk 0:01:07.4]} 36. gxf4
{[%clk 0:00:23.2]} 36... gxf4 {[%clk 0:01:06.4]} 37. h4 {[%clk 0:00:23.6]} 37...
Kf6 {[%clk 0:01:02.6]} 38. Nd2 {[%clk 0:00:19.9]} 38... Kf5 {[%clk 0:01:02.3]}
39. f3 {[%clk 0:00:19.1]} 39... Rh5 {[%clk 0:01:01.5]} 40. a3 {[%clk 0:00:12]}
40... Be7 {[%clk 0:01:01.1]} 41. Rc1 {[%clk 0:00:08.9]} 41... Rxh4 {[%clk
0:00:58.2]} 42. Rc7 {[%clk 0:00:08.5]} 42... Rh2+ {[%clk 0:00:58.3]} 43. Ke1
{[%clk 0:00:08.3]} 43... Bh4+ {[%clk 0:00:52.5]} 44. Kd1 {[%clk 0:00:08.4]}
44... e3 {[%clk 0:00:50.8]} 45. Nf1 {[%clk 0:00:07.2]} 45... e2+ {[%clk
0:00:50.1]} 0-1

[Event "Early-Titled-Tuesday-Blitz-March-26-2024"]
[Site "Chess.com"]
[Date "2024.03.26"]
[Round "7"]
[White "GMKrikor"]
[Black "MarijaKuznecova"]
[Result "1-0"]
[WhiteElo "2876"]
[BlackElo "2409"]
[TimeControl "180+1"]
[EndTime "9:15:20 PDT"]
[Termination "GMKrikor won by resignation"]

1. Nf3 {[%clk 0:03:00.9]} 1... c5 {[%clk 0:02:58.5]} 2. c4 {[%clk 0:03:00.4]}
2... Nc6 {[%clk 0:02:58.2]} 3. Nc3 {[%clk 0:02:58.8]} 3... e5 {[%clk 0:02:58.3]}
4. e3 {[%clk 0:02:58.2]} 4... Nf6 {[%clk 0:02:58.5]} 5. d4 {[%clk 0:02:57.7]}
5... cxd4 {[%clk 0:02:42.7]} 6. exd4 {[%clk 0:02:57.4]} 6... e4 {[%clk
0:02:43.2]} 7. Ne5 {[%clk 0:02:56.1]} 7... h5 {[%clk 0:02:41.6]} 8. Be2 {[%clk
0:02:49.2]} 8... Qc7 {[%clk 0:02:36.4]} 9. Nb5 {[%clk 0:02:21.9]} 9... Qb8
{[%clk 0:02:32.6]} 10. Bf4 {[%clk 0:02:15.9]} 10... Bb4+ {[%clk 0:02:01.8]} 11.
Kf1 {[%clk 0:01:56.6]} 11... Nxe5 {[%clk 0:01:32.8]} 12. Bxe5 {[%clk 0:01:08.2]}
12... d6 {[%clk 0:01:27.3]} 13. Bf4 {[%clk 0:00:49.4]} 13... a6 {[%clk
0:01:10.5]} 14. Qa4 {[%clk 0:00:49.2]} 14... axb5 {[%clk 0:01:07.2]} 15. Qxb5+
{[%clk 0:00:47.8]} 15... Bd7 {[%clk 0:01:04.6]} 16. Qxb4 {[%clk 0:00:48.7]}
16... Ra6 {[%clk 0:00:58.1]} 17. h3 {[%clk 0:00:39.5]} 17... O-O {[%clk
0:00:52.7]} 18. a3 {[%clk 0:00:35.2]} 18... Rc8 {[%clk 0:00:50.2]} 19. Qd2
{[%clk 0:00:28.7]} 19... Ra4 {[%clk 0:00:31.4]} 20. b3 {[%clk 0:00:27.4]} 20...
Ra7 {[%clk 0:00:28.1]} 21. c5 {[%clk 0:00:27.7]} 21... Ne8 {[%clk 0:00:23.8]}
22. Bxh5 {[%clk 0:00:27.8]} 22... Qc7 {[%clk 0:00:19.1]} 23. Kg1 {[%clk
0:00:22.1]} 23... Qc6 {[%clk 0:00:17.4]} 24. Kh2 {[%clk 0:00:19.4]} 24... Qd5
{[%clk 0:00:17.4]} 25. Be2 {[%clk 0:00:15.6]} 25... Qxb3 {[%clk 0:00:11.7]} 26.
Rhb1 {[%clk 0:00:15.3]} 26... Qd5 {[%clk 0:00:11.3]} 27. cxd6 {[%clk 0:00:12.5]}
27... Nxd6 {[%clk 0:00:12.1]} 28. Be3 {[%clk 0:00:10.2]} 28... Nf5 {[%clk
0:00:11.4]} 29. Rc1 {[%clk 0:00:10.4]} 29... Re8 {[%clk 0:00:09.6]} 30. Kg1
{[%clk 0:00:10.5]} 30... Bc6 {[%clk 0:00:08.4]} 31. Bc4 {[%clk 0:00:10.7]} 31...
Qd6 {[%clk 0:00:08.7]} 32. d5 {[%clk 0:00:11.2]} 32... Nxe3 {[%clk 0:00:03.9]}
33. Qxe3 {[%clk 0:00:12.1]} 33... Ra4 {[%clk 0:00:02.3]} 34. dxc6 {[%clk
0:00:11.3]} 34... bxc6 {[%clk 0:00:03.2]} 35. Bb3 {[%clk 0:00:09.6]} 35... Ra7
{[%clk 0:00:03.5]} 36. Rd1 {[%clk 0:00:10.1]} 36... Qf6 {[%clk 0:00:02.9]} 37.
Qxa7 {[%clk 0:00:09.7]} 1-0